bitfinex-derivatives/quotes_BTCF0:USTF0_20241029
["timestamp","ask_amount","ask_price","bid_price","bid_amount"]
[1730218228204,6.72130108,72696.0,72695.0,0.15273587]
[1730218228390,6.72130108,72696.0,72695.0,0.22152587]
[1730218228597,6.72130108,72696.0,72695.0,0.15273587]
[1730218228902,6.95667595,72696.0,72695.0,0.01379]
[1730218229096,0.02764,72689.0,72684.0,0.0688]
[1730218229294,6.86024695,72696.0,72684.0,0.0688]
[1730218229295,0.02764,72695.0,72686.0,0.3608]
[1730218229605,0.02764,72693.0,72690.0,0.068795]
[1730218229803,0.02764,72693.0,72692.0,0.56853887]
[1730218230003,0.02764,72693.0,72689.0,0.068796]
[1730218230198,0.02764,72693.0,72689.0,0.3608]
[1730218230513,0.02764,72693.0,72688.0,0.068796]
[1730218230815,0.02764,72684.0,72681.0,0.3608]
[1730218231503,0.02764,72684.0,72683.0,0.068802]
[1730218232005,0.02764,72682.0,72681.0,0.3608]
[1730218232408,0.02764,72682.0,72681.0,0.429604]
[1730218233503,0.096443,72682.0,72681.0,0.3608]
[1730218233712,0.096445,72679.0,72678.0,0.00206387]
[1730218234409,0.02764,72679.0,72674.0,0.13894587]
[1730218234597,0.02764,72678.0,72672.0,0.06907]
[1730218234795,0.02764,72678.0,72671.0,0.3608]
[1730218234796,0.02764,72678.0,72677.0,0.63762287]
[1730218235209,0.02764,72678.0,72677.0,0.63662287]
[1730218235702,0.02764,72678.0,72677.0,0.42987]
[1730218236702,0.05273637,72678.0,72677.0,0.06907]
[1730218236913,0.05273637,72678.0,72677.0,0.63762287]
[1730218237095,0.02764,72678.0,72677.0,0.63762287]
[1730218238299,0.02764,72678.0,72677.0,1.05042287]
[1730218239002,0.25256421,72699.0,72677.0,0.98161587]
[1730218239003,0.00206421,72699.0,72677.0,0.98161587]
[1730218239302,6.67985108,72696.0,72693.0,0.137862]
[1730218239708,6.67985108,72696.0,72693.0,0.110222]
[1730218239901,6.67985108,72696.0,72693.0,0.04143]
[1730218240099,6.67985108,72696.0,72695.0,0.37459]
[1730218241303,6.70509015,72696.0,72695.0,0.51353587]
[1730218242723,6.73273015,72696.0,72695.0,0.58232587]
[1730218243611,6.73273015,72696.0,72695.0,0.51353587]
[1730218243809,6.73273015,72696.0,72695.0,0.58232587]
[1730218244503,6.73273015,72696.0,72695.0,0.51353587]
[1730218245907,6.73273015,72696.0,72695.0,0.37459]
[1730218246411,6.73273015,72696.0,72695.0,0.51353587]
[1730218248515,6.73273015,72696.0,72695.0,0.58232587]
[1730218249914,6.73273015,72696.0,72695.0,0.51353587]
[1730218250311,6.73273015,72696.0,72695.0,0.37459]
[1730218250611,6.80151915,72696.0,72695.0,0.37459]
[1730218250811,6.73273015,72696.0,72695.0,0.37459]
[1730218251008,6.73273015,72696.0,72695.0,0.58232587]
[1730218252007,6.73273015,72696.0,72695.0,0.99500587]
[1730218252412,6.73273015,72696.0,72695.0,0.85606]
[1730218252616,6.73273015,72696.0,72695.0,0.94859271]
[1730218253418,6.36824034,72696.0,72695.0,1.04112542]
[1730218253717,5.08475176,72696.0,72695.0,1.34112542]
[1730218253904,5.01431976,72696.0,72695.0,1.34112542]
[1730218254107,4.97286976,72696.0,72695.0,1.34112542]
[1730218254309,4.83172376,72696.0,72695.0,1.38108099]
[1730218254611,4.83172376,72696.0,72695.0,1.43359866]
[1730218254612,4.51701389,72696.0,72695.0,1.43359866]
[1730218254810,4.38741889,72696.0,72695.0,1.43359866]
[1730218255017,4.17898371,72696.0,72695.0,1.43359866]
[1730218255212,4.05907871,72696.0,72695.0,1.43359866]
[1730218255407,3.98589571,72696.0,72695.0,1.34810343]
[1730218255607,3.98589571,72696.0,72695.0,1.14010933]
[1730218255912,2.99550697,72696.0,72695.0,1.99287276]
[1730218256115,1.52828697,72696.0,72695.0,1.93959866]
[1730218256414,0.72202197,72696.0,72695.0,1.79431866]
[1730218256609,0.60183497,72696.0,72695.0,1.93959866]
[1730218256809,0.47642297,72696.0,72695.0,1.93959866]
[1730218257005,0.47642297,72696.0,72695.0,1.79431866]
[1730218257207,0.34631397,72696.0,72695.0,1.93959866]
[1730218257415,0.22159597,72696.0,72695.0,1.79431866]
[1730218257614,0.05,72700.0,72699.0,0.068787]
[1730218257922,1.3e-07,72700.0,72699.0,0.495057]
[1730218258108,1.3e-07,72700.0,72699.0,0.940337]
[1730218258306,1.3e-07,72700.0,72699.0,0.795057]
[1730218258508,1.3e-07,72700.0,72699.0,0.940337]
[1730218258907,0.02504971,72719.0,72699.0,0.930337]
[1730218259111,0.068768,72721.0,72720.0,0.082396]
[1730218260322,0.068767,72720.0,72719.0,0.01363]
[1730218260513,0.41268,72719.0,72716.0,0.13876933]
[1730218260708,0.02563656,72722.0,72710.0,0.13876933]
[1730218260709,0.068775,72711.0,72710.0,0.13876933]
[1730218260909,0.068778,72708.0,72707.0,0.429579]
[1730218261109,0.38643656,72722.0,72709.0,0.06907]
[1730218261110,0.068774,72713.0,72709.0,0.06907]
[1730218261307,0.068769,72718.0,72717.0,0.137838]
[1730218261509,0.068769,72718.0,72717.0,0.56863933]
[1730218261810,0.02486877,72722.0,72717.0,0.56863933]
[1730218262011,0.02486877,72722.0,72721.0,0.137836]
[1730218262419,0.02486877,72722.0,72721.0,0.04152]
[1730218262721,0.02486877,72722.0,72721.0,0.110286]
[1730218262926,0.09363377,72722.0,72721.0,0.110286]
[1730218263325,0.02486877,72722.0,72721.0,0.110286]
[1730218263516,0.00025,72722.0,72721.0,0.110286]
[1730218263717,0.069015,72722.0,72721.0,0.110286]
[1730218264119,0.00025,72722.0,72721.0,0.110286]
[1730218264322,0.00025,72722.0,72721.0,0.822806]
[1730218264512,0.00025,72722.0,72721.0,0.110286]
[1730218264715,0.069015,72722.0,72721.0,0.110286]
[1730218264914,0.00025,72722.0,72721.0,0.110286]
[1730218265315,0.069015,72722.0,72721.0,0.110286]
[1730218265712,0.00025,72722.0,72721.0,0.110286]
[1730218266318,0.069015,72722.0,72721.0,0.110286]
[1730218266519,0.069015,72722.0,72721.0,0.04152]
[1730218266715,0.481695,72722.0,72721.0,0.04152]
[1730218266920,0.00025,72722.0,72721.0,0.110286]
[1730218267523,0.069015,72722.0,72721.0,0.110286]
[1730218267722,0.10386897,72722.0,72721.0,0.110286]
[1730218267928,0.51654897,72722.0,72721.0,0.04152]
[1730218268228,0.51654897,72722.0,72721.0,0.110286]
[1730218268618,0.51654897,72722.0,72721.0,0.04152]
[1730218269123,0.10362197,72719.0,72718.0,0.06907]
[1730218269316,0.10362597,72714.0,72713.0,0.3608]
[1730218269512,0.80833397,72714.0,72707.0,0.3608]
[1730218269715,0.80833397,72714.0,72698.0,0.068787]
[1730218269716,0.44753397,72699.0,72698.0,0.068787]
[1730218269920,0.87712097,72699.0,72698.0,0.13876933]
[1730218270225,0.87712097,72699.0,72698.0,0.04152]
[1730218270827,0.9022487,72699.0,72698.0,0.04152]
[1730218271626,0.9022487,72699.0,72694.0,0.00206337]
[1730218271823,0.51632397,72695.0,72694.0,0.00206337]
[1730218272338,0.51632397,72695.0,72680.0,0.068804]
[1730218272339,0.03485397,72688.0,72681.0,0.068803]
[1730218272627,0.03485397,72684.0,72683.0,0.068802]
[1730218272831,0.03485397,72684.0,72683.0,0.27664133]
[1730218273133,0.41268,72685.0,72684.0,0.137871]
[1730218273134,0.10365397,72685.0,72684.0,0.137871]
[1730218273434,0.51633397,72685.0,72684.0,0.06907]
[1730218273822,0.10365397,72685.0,72678.0,0.54288917]
[1730218274019,0.246,72688.0,72679.0,0.06907]
[1730218274020,0.10365897,72680.0,72679.0,0.06907]
[1730218274426,0.44753397,72680.0,72679.0,0.27664433]
[1730218274629,0.03485397,72680.0,72679.0,0.27664433]
[1730218275334,0.02755,72687.0,72686.0,0.068799]
[1730218275629,0.02755,72687.0,72686.0,0.498669]
[1730218276633,1.36939733,72687.0,72676.0,0.04019907]
[1730218276823,1.36939733,72687.0,72676.0,0.068808]
[1730218276824,0.80103,72677.0,72676.0,0.068808]
[1730218277332,0.38835,72677.0,72676.0,0.068808]
[1730218279336,0.20390438,72661.0,72645.0,0.00206474]
[1730218279535,0.38835,72646.0,72645.0,0.07090274]
[1730218279735,0.38835,72646.0,72645.0,0.48386274]
[1730218282036,0.38835,72646.0,72645.0,0.07090274]
[1730218282238,0.38835,72646.0,72645.0,0.41296]
[1730218283233,0.38835,72646.0,72641.0,0.13876933]
[1730218283438,0.38835,72646.0,72642.0,0.41296]
[1730218283944,0.38835,72646.0,72645.0,0.068838]
[1730218284130,0.02755,72646.0,72645.0,0.068838]
[1730218284326,0.02755,72652.0,72645.0,1.21824]
[1730218284527,0.01490093,72652.0,72651.0,0.13876933]
[1730218284840,0.3608,72666.0,72659.0,0.068824]
[1730218285042,0.3608,72666.0,72661.0,0.13876933]
[1730218285539,0.3608,72666.0,72661.0,0.20759133]
[1730218286335,0.3608,72666.0,72662.0,0.068821]
[1730218286535,0.3608,72666.0,72662.0,0.481701]
[1730218286740,0.3608,72666.0,72664.0,0.068819]
[1730218287145,0.3608,72666.0,72665.0,0.41284]
[1730218287531,0.3608,72666.0,72661.0,0.16303298]
[1730218288035,0.3608,72666.0,72661.0,0.13876933]
[1730218288239,0.3608,72666.0,72662.0,0.068822]
[1730218288931,0.3608,72666.0,72661.0,0.13876933]
[1730218289132,0.068819,72665.0,72661.0,0.13876933]
[1730218289532,0.068819,72665.0,72651.0,0.59312]
[1730218289533,0.068825,72659.0,72651.0,0.069551]
[1730218289732,0.31935,72655.0,72652.0,0.048831]
[1730218289939,0.31935,72655.0,72654.0,0.20783933]
[1730218290334,0.388178,72655.0,72654.0,0.20783933]
[1730218290538,0.31935,72655.0,72654.0,0.20783933]
[1730218291936,0.3608,72666.0,72665.0,0.0503448]
[1730218292136,0.3608,72666.0,72665.0,0.20765933]
[1730218294834,0.3701626,72666.0,72665.0,0.20765933]
[1730218295039,0.3701626,72666.0,72665.0,0.18794853]
[1730218295235,0.3701626,72666.0,72665.0,0.13876933]
[1730218295549,0.3608,72672.0,72665.0,0.69037866]
[1730218295841,0.00112001,72681.0,72680.0,0.068805]
[1730218296045,0.096346,72689.0,72680.0,0.91232933]
[1730218296238,0.096346,72689.0,72688.0,0.20765933]
[1730218296640,0.457146,72689.0,72688.0,0.20765933]
[1730218297549,0.66105038,72689.0,72688.0,0.06889]
[1730218298545,0.66105038,72689.0,72683.0,0.13876933]
[1730218298546,0.59225438,72689.0,72684.0,0.06889]
[1730218298848,0.09635,72685.0,72684.0,0.06889]
[1730218299241,0.096351,72684.0,72683.0,0.13876933]
[1730218299445,0.09636,72674.0,72673.0,0.00206372]
[1730218299754,0.02755,72659.0,72657.0,0.03904262]
[1730218299935,0.096376,72657.0,72656.0,0.33325]
[1730218300138,0.096376,72657.0,72656.0,0.37459]
[1730218300340,0.096376,72657.0,72656.0,0.35399]
[1730218303744,0.096376,72657.0,72656.0,0.422817]
[1730218304856,0.137737,72637.0,72636.0,0.068846]
[1730218305044,0.06889,72637.0,72636.0,0.068846]
[1730218305349,0.3608,72650.0,72636.0,0.96152954]
[1730218305537,0.3608,72650.0,72649.0,0.20760333]
[1730218305942,0.3667208,72650.0,72649.0,0.62056333]
[1730218306941,0.0059208,72650.0,72649.0,0.62056333]
[1730218307142,0.0059208,72650.0,72649.0,0.068834]
[1730218307347,0.0059208,72650.0,72615.0,0.068866]
[1730218307348,0.068853,72629.0,72615.0,0.068866]
[1730218307657,0.0059208,72623.0,72622.0,0.22391779]
[1730218307845,0.0059208,72623.0,72622.0,0.137749]
[1730218308043,0.0059208,72623.0,72622.0,0.550829]
[1730218308346,0.0059208,72623.0,72622.0,0.523279]
[1730218309549,0.20982518,72623.0,72622.0,0.04134]
[1730218309750,0.0059208,72623.0,72622.0,0.45442]
[1730218309944,0.0059208,72623.0,72622.0,0.523279]
[1730218310145,0.0059208,72623.0,72622.0,0.04134]
[1730218310347,0.0059208,72623.0,72622.0,0.66204833]
[1730218311447,0.02755,72623.0,72622.0,0.89318933]
[1730218311642,0.3608,72633.0,72632.0,0.08264]
[1730218311946,0.3608,72646.0,72640.0,0.01379]
[1730218312247,0.20390438,72642.0,72641.0,0.27650033]
[1730218312443,0.27274538,72642.0,72641.0,0.06889]
[1730218313050,0.20390438,72642.0,72637.0,0.06889]
[1730218313250,0.068844,72638.0,72637.0,0.136735]
[1730218313453,0.068844,72638.0,72637.0,0.131735]
[1730218313748,0.068844,72638.0,72637.0,0.122735]
[1730218313953,0.068844,72638.0,72637.0,0.120735]
[1730218314255,0.3608,72640.0,72637.0,0.120735]
[1730218314256,0.3608,72640.0,72637.0,0.068845]
[1730218314445,0.3608,72640.0,72636.0,0.13876933]
[1730218314641,0.3608,72640.0,72630.0,0.06889]
[1730218314642,0.068851,72631.0,72630.0,0.06889]
[1730218314847,0.77232471,72631.0,72630.0,0.06889]
[1730218315456,0.63355538,72631.0,72630.0,0.06889]
[1730218315749,0.068859,72622.0,72619.0,0.06889]
[1730218315957,0.63356338,72622.0,72619.0,0.06889]
[1730218316255,0.63556338,72622.0,72619.0,0.06889]
[1730218316753,0.63556338,72622.0,72616.0,0.06889]
[1730218316953,0.63556338,72622.0,72618.0,0.06889]
[1730218317156,0.63556338,72622.0,72620.0,0.06889]
[1730218317556,0.3628,72622.0,72621.0,0.1398151]
[1730218317753,0.36216,72631.0,72621.0,0.1398151]
[1730218317754,0.002,72630.0,72629.0,0.137743]
[1730218317946,0.070852,72630.0,72629.0,0.27651233]
[1730218318455,0.002,72630.0,72629.0,0.27651233]
[1730218318865,0.070852,72630.0,72629.0,0.27651233]
[1730218319555,0.06887,72612.0,72611.0,0.06887]
[1730218319759,0.06887,72612.0,72611.0,0.13776]
[1730218319760,0.08587,72612.0,72611.0,0.13776]
[1730218319956,0.08587,72612.0,72611.0,0.04134]
[1730218320159,0.65057438,72612.0,72611.0,0.04134]
[1730218320775,0.20183801,72599.0,72588.0,0.06889]
[1730218320954,0.81656933,72612.0,72589.0,0.06889]
[1730218320955,0.28772801,72590.0,72589.0,0.06889]
[1730218321151,0.085903,72576.0,72575.0,0.00072]
[1730218321350,0.085903,72576.0,72560.0,0.16315625]
[1730218321351,0.06891,72570.0,72560.0,0.16315625]
[1730218321655,0.017,72566.0,72565.0,0.068914]
[1730218321961,0.429699,72581.0,72565.0,0.20768333]
[1730218322160,0.429699,72581.0,72580.0,0.20766833]
[1730218322351,0.068903,72576.0,72575.0,0.13876933]
[1730218322558,0.068902,72577.0,72575.0,0.068903]
[1730218322754,0.02755,72579.0,72572.0,0.13876933]
[1730218322960,0.02755,72579.0,72578.0,0.20765933]
[1730218323262,0.02755,72579.0,72578.0,0.27655933]
[1730218323559,0.02755,72579.0,72578.0,0.110241]
[1730218323767,0.02755,72579.0,72578.0,0.04134]
[1730218323768,0.79785734,72579.0,72578.0,0.04134]
[1730218324359,0.65908801,72579.0,72578.0,0.04134]
[1730218324766,0.59018801,72579.0,72566.0,0.13876933]
[1730218325060,0.02755,72567.0,72566.0,0.20768233]
[1730218325262,0.02755,72567.0,72566.0,0.068913]
[1730218325459,0.02755,72567.0,72566.0,0.27657233]
[1730218326561,0.02755,72569.0,72568.0,0.137801]
[1730218326960,0.09646,72569.0,72568.0,0.137801]
[1730218327766,0.02755,72569.0,72568.0,0.137801]
[1730218328064,0.29829801,72569.0,72558.0,0.00206763]
[1730218328254,0.096485,72542.0,72541.0,0.06889]
[1730218328768,0.20279713,72542.0,72541.0,0.06889]
[1730218328965,0.20279713,72542.0,72541.0,0.137826]
[1730218329153,0.13386213,72542.0,72541.0,0.137826]
[1730218329668,0.13386213,72542.0,72541.0,0.068936]
[1730218329869,0.02755,72542.0,72541.0,0.482496]
[1730218330064,0.02755,72542.0,72541.0,0.926656]
[1730218330269,0.02755,72542.0,72541.0,0.626656]
[1730218330768,0.02755,72542.0,72541.0,0.55772]
[1730218330964,0.02755,72542.0,72541.0,0.50677387]
[1730218331173,0.02755,72554.0,72547.0,0.068931]
[1730218331468,0.02755,72554.0,72553.0,0.20769433]
[1730218331670,0.096474,72554.0,72553.0,0.20769433]
[1730218332263,0.13386213,72554.0,72541.0,0.02427787]
[1730218332459,0.02755,72538.0,72537.0,0.07100787]
[1730218332660,0.02755,72538.0,72537.0,0.2097772]
[1730218332866,0.02755,72538.0,72537.0,0.6233372]
[1730218333767,0.3608,72545.0,72537.0,0.5543972]
[1730218333968,0.429724,72555.0,72554.0,0.068924]
[1730218334168,0.53603613,72555.0,72554.0,0.20769333]
[1730218334370,0.46711213,72555.0,72554.0,0.27658333]
[1730218334564,0.3608,72562.0,72561.0,0.068917]
[1730218334868,0.3608,72562.0,72561.0,0.27657633]
[1730218334869,0.46711213,72562.0,72561.0,0.27657633]
[1730218335259,0.3608,72570.0,72561.0,0.69001633]
[1730218335462,0.429709,72570.0,72569.0,0.1378]
[1730218335976,0.429709,72570.0,72569.0,0.06889]
[1730218336274,0.53602113,72570.0,72569.0,0.06889]
[1730218336475,0.75038954,72570.0,72569.0,0.06889]
[1730218338364,0.75038954,72570.0,72560.0,0.06889]
[1730218338571,0.068917,72561.0,72560.0,0.06889]
[1730218338871,0.17522913,72561.0,72560.0,0.06889]
[1730218339271,0.53602913,72561.0,72560.0,0.06889]
[1730218339864,0.53602913,72561.0,72560.0,0.04134]
[1730218340275,0.53602913,72561.0,72560.0,0.110258]
[1730218340572,0.46711213,72561.0,72560.0,0.110258]
[1730218341166,0.53602913,72561.0,72560.0,0.04134]
[1730218341474,0.53602913,72561.0,72560.0,0.110258]
[1730218342667,0.53802913,72561.0,72560.0,0.110258]
[1730218342865,0.46911213,72561.0,72560.0,0.110258]
[1730218343074,0.3628,72561.0,72560.0,0.110258]
[1730218343487,0.002,72567.0,72566.0,0.082703]
[1730218343785,0.002,72567.0,72566.0,0.71047141]
[1730218344072,0.32148,72576.0,72566.0,0.71047141]
[1730218344280,0.32148,72576.0,72575.0,0.068904]
[1730218344479,0.34903,72576.0,72575.0,0.068904]
[1730218345375,0.417933,72576.0,72575.0,0.068904]
[1730218345574,0.34903,72576.0,72575.0,0.068904]
[1730218345776,0.417933,72576.0,72575.0,0.068904]
[1730218346078,0.417933,72576.0,72567.0,0.02537604]
[1730218346079,0.34903,72576.0,72567.0,0.02537604]
[1730218346281,0.096462,72567.0,72566.0,0.01379]
[1730218346586,0.20277413,72567.0,72566.0,0.01379]
[1730218347971,0.13386213,72567.0,72560.0,0.00206672]
[1730218348175,0.13386213,72561.0,72560.0,0.01585672]
[1730218348479,0.20277913,72561.0,72560.0,0.01585672]
[1730218349279,0.20277913,72561.0,72560.0,0.00206672]
[1730218350278,0.096474,72554.0,72553.0,0.01379]
[1730218350482,0.31084241,72554.0,72553.0,0.01379]
[1730218350778,0.41715454,72554.0,72553.0,0.01379]
[1730218351179,0.41715454,72554.0,72553.0,0.082715]
[1730218352782,0.20278613,72554.0,72553.0,0.082715]
[1730218353577,0.77795454,72554.0,72550.0,0.01379]
[1730218353779,0.096477,72551.0,72550.0,0.01379]
[1730218353990,0.20278913,72551.0,72550.0,0.01379]
[1730218356589,0.20278913,72551.0,72550.0,0.082718]
[1730218356779,0.20278913,72551.0,72550.0,0.01379]
[1730218358891,0.20278913,72551.0,72546.0,0.082721]
[1730218358892,0.096484,72547.0,72546.0,0.082721]
[1730218359184,0.19422194,72547.0,72546.0,0.01379]
[1730218359490,0.19422194,72547.0,72546.0,0.22177994]
[1730218359491,0.02755,72547.0,72546.0,0.22177994]
[1730218359991,0.02755,72547.0,72546.0,0.082722]
[1730218360191,0.02755,72547.0,72546.0,0.13687801]
[1730218360390,0.02755,72547.0,72546.0,0.082722]
[1730218360585,0.068928,72550.0,72548.0,0.06893]
[1730218360586,0.02755,72549.0,72548.0,0.06893]
[1730218360791,0.13386213,72549.0,72548.0,0.06893]
[1730218360986,0.20279113,72549.0,72548.0,0.06893]
[1730218361188,0.096481,72547.0,72546.0,0.06794601]
[1730218361390,0.59633894,72547.0,72546.0,0.01379]
[1730218361992,0.70265107,72547.0,72546.0,0.01379]
[1730218365583,0.70265107,72547.0,72540.0,0.01379]
[1730218365784,0.23554394,72541.0,72540.0,0.01379]
[1730218366085,0.34185607,72541.0,72540.0,0.01379]
[1730218366291,0.70265607,72541.0,72540.0,0.01379]
[1730218367285,0.56359813,72541.0,72540.0,0.082727]
[1730218367997,0.70265607,72541.0,72540.0,0.01379]
[1730218368793,0.56359813,72541.0,72540.0,0.082727]
[1730218369804,0.20279813,72541.0,72540.0,0.082727]
[1730218370005,0.49466213,72541.0,72540.0,0.082727]
[1730218371501,0.20279813,72541.0,72540.0,0.10790216]
[1730218371897,0.20275813,72541.0,72540.0,0.10790216]
[1730218372398,0.20275813,72541.0,72540.0,0.03896516]
[1730218372597,0.20275813,72541.0,72540.0,0.01379]
[1730218374103,0.16143813,72541.0,72540.0,0.01379]
[1730218375405,0.16143813,72541.0,72540.0,0.06794601]
[1730218376099,0.16143813,72541.0,72540.0,0.01379]
[1730218376808,0.02751,72530.0,72525.0,0.00206811]
[1730218377102,0.457261,72526.0,72525.0,0.00206811]
[1730218377406,0.457261,72526.0,72515.0,0.137851]
[1730218377407,0.09647,72516.0,72515.0,0.137851]
[1730218377594,0.59632794,72516.0,72515.0,0.137851]
[1730218378601,0.62067811,72516.0,72515.0,0.137851]
[1730218379707,0.62167811,72516.0,72515.0,0.19908231]
[1730218379902,0.76173605,72516.0,72515.0,0.08289]
[1730218380108,0.62267811,72516.0,72515.0,0.08289]
[1730218380414,1.17545605,72516.0,72515.0,0.08289]
[1730218380610,0.096478,72508.0,72505.0,0.0541922]
[1730218380814,0.096482,72504.0,72503.0,0.0541922]
[1730218381112,0.02751,72502.0,72501.0,0.27692194]
[1730218381601,0.02751,72502.0,72501.0,0.137864]
[1730218381602,0.096483,72502.0,72501.0,0.137864]
[1730218381905,0.02751,72502.0,72501.0,0.137864]
[1730218382113,0.02751,72502.0,72500.0,0.00206887]
[1730218382302,0.13905794,72503.0,72500.0,0.00206887]
[1730218382303,0.096484,72501.0,72500.0,0.00206887]
[1730218382706,0.88495,72501.0,72498.0,0.12303454]
[1730218382916,0.59626394,72499.0,72498.0,0.06889]
[1730218383106,0.73994394,72499.0,72498.0,0.06889]
[1730218383307,1.15374394,72499.0,72498.0,0.06889]
[1730218383704,1.45374394,72499.0,72498.0,0.06889]
[1730218383909,1.38476794,72499.0,72480.0,0.05414454]
[1730218384213,0.096463,72483.0,72482.0,0.068992]
[1730218385510,0.3608,72485.0,72478.0,0.068996]
[1730218385511,0.096467,72479.0,72478.0,0.068996]
[1730218385912,0.068997,72477.0,72476.0,0.2566]
[1730218386113,0.068999,72476.0,72475.0,0.068998]
[1730218386406,0.068999,72476.0,72473.0,0.2548]
[1730218386610,0.096471,72473.0,72472.0,0.3608]
[1730218386816,0.096432,72472.0,72471.0,0.069002]
[1730218387118,0.23548994,72472.0,72471.0,0.069002]
[1730218387322,0.096432,72472.0,72471.0,0.069002]
[1730218387511,0.02747,72472.0,72471.0,0.069003]
[1730218388414,0.02747,72472.0,72471.0,0.071003]
[1730218390013,0.38827,72472.0,72471.0,0.074003]
[1730218390318,0.38827,72472.0,72471.0,0.072003]
[1730218390533,0.458272,72472.0,72471.0,0.072003]
[1730218390718,0.458272,72472.0,72471.0,0.069003]
[1730218391022,0.459272,72472.0,72471.0,0.069003]
[1730218391524,0.096476,72468.0,72467.0,0.322105]
[1730218392224,0.02747,72468.0,72467.0,0.2531]
[1730218392414,0.02747,72468.0,72467.0,0.322107]
[1730218392813,0.096476,72468.0,72467.0,0.322107]
[1730218393327,0.096476,72468.0,72467.0,0.069007]
[1730218393621,0.02847,72468.0,72467.0,0.081007]
[1730218394619,0.068992,72483.0,72467.0,0.42596]
[1730218394822,0.068952,72483.0,72482.0,0.068992]
[1730218395011,0.3608,72485.0,72484.0,0.068991]
[1730218395314,0.3608,72493.0,72492.0,0.068983]
[1730218395519,0.06898,72496.0,72492.0,0.13905794]
[1730218395718,0.06898,72496.0,72495.0,0.06898]
[1730218396213,0.068975,72501.0,72498.0,0.068977]
[1730218396524,0.3608,72505.0,72498.0,0.20803494]
[1730218396717,0.068968,72508.0,72504.0,0.49985794]
[1730218396911,0.068964,72512.0,72511.0,0.068964]
[1730218397223,0.9136,72521.0,72508.0,0.068967]
[1730218397224,0.06896,72517.0,72508.0,0.068967]
[1730218397525,0.068961,72515.0,72514.0,0.068961]
[1730218397709,0.14112706,72523.0,72514.0,0.3608]
[1730218397913,0.3608,72527.0,72526.0,0.068951]
[1730218398213,0.3608,72541.0,72526.0,0.13905794]
[1730218398416,0.3608,72541.0,72529.0,0.3608]
[1730218398417,0.13905794,72539.0,72529.0,0.3608]
[1730218398621,0.13905794,72539.0,72522.0,0.40675794]
[1730218398622,0.068945,72533.0,72531.0,0.068945]
[1730218398924,0.068945,72532.0,72531.0,0.068945]
[1730218399422,0.068947,72531.0,72527.0,0.212669]
[1730218399609,0.13905794,72530.0,72522.0,0.26854]
[1730218399812,0.068953,72524.0,72523.0,0.068953]
[1730218401222,0.002,72524.0,72523.0,0.068953]
[1730218402512,0.003,72524.0,72521.0,0.3608]
[1730218402714,0.068954,72522.0,72521.0,0.429755]
[1730218403117,0.003,72524.0,72521.0,0.3608]
[1730218403317,0.068954,72522.0,72521.0,0.3608]
[1730218404212,0.068954,72522.0,72521.0,0.3618]
[1730218404824,0.20801194,72522.0,72521.0,0.3618]
[1730218405033,0.20801194,72522.0,72521.0,0.001]
[1730218405720,0.06896,72516.0,72515.0,0.3608]
[1730218406025,0.068964,72512.0,72503.0,0.3608]
[1730218406418,0.482684,72512.0,72500.0,0.04042914]
[1730218406616,0.482684,72512.0,72498.0,0.3608]
[1730218406617,0.482684,72512.0,72499.0,0.04042914]
[1730218406815,0.482684,72512.0,72498.0,0.3608]
[1730218408522,0.50790948,72512.0,72498.0,0.3608]
[1730218408822,0.068976,72499.0,72498.0,0.3608]
[1730218409021,0.068983,72492.0,72491.0,0.02530246]
[1730218409325,0.13905794,72499.0,72489.0,0.00206912]
[1730218409326,0.068985,72490.0,72489.0,0.00206912]
[1730218410521,0.482825,72490.0,72489.0,0.00206912]
[1730218411420,0.843625,72490.0,72471.0,0.3608]
[1730218411621,0.843625,72490.0,72469.0,0.069004]
[1730218411622,0.069002,72472.0,72469.0,0.069004]
[1730218411822,0.069004,72470.0,72469.0,0.069004]
[1730218412631,0.069006,72468.0,72466.0,0.06542647]
[1730218412829,0.069006,72468.0,72465.0,0.40122914]
[1730218413038,0.069002,72472.0,72465.0,0.40122914]
[1730218413332,0.069007,72467.0,72465.0,0.40122914]
[1730218413527,0.069008,72466.0,72465.0,0.40122914]
[1730218413731,0.002,72470.0,72465.0,0.40122914]
[1730218413933,0.002,72470.0,72465.0,0.47023814]
[1730218414133,0.069006,72468.0,72465.0,0.47023814]
[1730218414333,0.069006,72468.0,72465.0,0.429809]
[1730218415233,0.070006,72468.0,72465.0,0.429809]
[1730218416033,0.070006,72468.0,72466.0,0.04042914]
[1730218416228,0.001,72468.0,72467.0,0.069007]
[1730218416429,0.001,72468.0,72467.0,0.47023614]
[1730218416632,0.02494085,72483.0,72482.0,0.068992]
[1730218416829,0.02494085,72483.0,72479.0,0.068995]
[1730218416830,0.09393285,72483.0,72479.0,0.068995]
[1730218417030,0.13905794,72486.0,72479.0,0.068995]
[1730218417237,0.068994,72481.0,72479.0,0.068995]
[1730218417937,0.13905794,72486.0,72474.0,0.3608]
[1730218418130,0.13905794,72486.0,72474.0,0.40131675]
[1730218418325,0.13905794,72486.0,72479.0,0.068995]
[1730218418830,0.20804694,72486.0,72479.0,0.068995]
[1730218419242,0.20804694,72486.0,72480.0,0.068994]
[1730218419738,0.20904694,72486.0,72481.0,0.06889]
[1730218420232,0.13905794,72486.0,72481.0,0.06889]
[1730218420433,0.13905794,72486.0,72479.0,0.06889]
[1730218420434,0.13905794,72482.0,72479.0,0.06889]
[1730218420640,0.068994,72481.0,72479.0,0.06889]
[1730218421032,0.068994,72480.0,72479.0,0.06889]
[1730218421434,0.068994,72480.0,72471.0,0.04051675]
[1730218421435,0.068999,72475.0,72471.0,0.06889]
[1730218421735,0.13905794,72474.0,72471.0,0.06889]
[1730218422135,0.069002,72472.0,72471.0,0.06889]
[1730218422534,0.13905794,72474.0,72471.0,0.137892]
[1730218423235,0.14005794,72474.0,72471.0,0.137892]
[1730218423539,0.001,72474.0,72473.0,0.137891]
[1730218423836,0.002,72474.0,72473.0,0.137891]
[1730218424036,0.002,72474.0,72473.0,0.498691]
[1730218424738,0.002,72474.0,72473.0,0.471141]
[1730218425334,0.00196,72474.0,72473.0,0.471141]